[Event "Titled Tuesday Blitz July 4 Early 2023"]
[White "Postny, Evgeny"]
[Black "Kupervaser, Erez"]
[WhiteFideId "2804344"]
[BlackFideId "2814587"]
[WhiteElo "2725"]
[BlackElo "2496"]
[Result "1-0"]
[Round "3"]
[TimeControl "180+2"]
[Date "2023.07.04"]
[WhiteClock "0:00:53"]
[BlackClock "0:00:07"]
[Board "87"]

1. e4 {[%clk 0:02:55]}  c5 {[%clk 0:02:58]} 2. Nf3 {[%clk 0:02:54]}  d6 {[%clk 0:02:56]} 3. d4 {[%clk 0:02:54]}  cxd4 {[%clk 0:02:56]} 4. Nxd4 {[%clk 0:02:55]}  Nf6 {[%clk 0:02:55]} 5. Nc3 {[%clk 0:02:55]}  a6 {[%clk 0:02:47]} 6. g3 {[%clk 0:02:53]}  e5 {[%clk 0:02:45]} 7. Nde2 {[%clk 0:02:51]}  Be7 {[%clk 0:02:43]} 8. Bg2 {[%clk 0:02:52]}  O-O {[%clk 0:02:42]} 9. O-O {[%clk 0:02:52]}  Nbd7 {[%clk 0:02:41]} 10. f4 {[%clk 0:02:49]}  b5 {[%clk 0:02:38]} 11. h3 {[%clk 0:02:46]}  Bb7 {[%clk 0:02:37]} 12. Be3 {[%clk 0:02:37]}  b4 {[%clk 0:02:34]} 13. Nd5 {[%clk 0:02:37]}  Nxd5 {[%clk 0:02:23]} 14. exd5 {[%clk 0:02:38]}  Rc8 {[%clk 0:02:21]} 15. f5 {[%clk 0:02:33]}  Bg5 {[%clk 0:02:15]} 16. Bf2 {[%clk 0:02:31]}  Qc7 {[%clk 0:02:04]} 17. c3 {[%clk 0:02:30]}  a5 {[%clk 0:02:01]} 18. h4 {[%clk 0:02:24]}  Bh6 {[%clk 0:02:00]} 19. g4 {[%clk 0:02:22]}  f6 {[%clk 0:02:00]} 20. Qd3 {[%clk 0:02:05]}  Nc5 {[%clk 0:01:58]} 21. Qg3 {[%clk 0:02:00]}  Ba6 {[%clk 0:01:56]} 22. Rfe1 {[%clk 0:01:52]}  Bxe2 {[%clk 0:01:48]} 23. Rxe2 {[%clk 0:01:52]}  Bf4 {[%clk 0:01:49]} 24. Qh3 {[%clk 0:01:49]}  Na4 {[%clk 0:01:43]} 25. cxb4 {[%clk 0:01:45]}  axb4 {[%clk 0:01:43]} 26. Qb3 {[%clk 0:01:33]}  Qa5 {[%clk 0:01:36]} 27. a3 {[%clk 0:01:18]}  Rb8 {[%clk 0:01:03]} 28. Kh1 {[%clk 0:01:14]}  Nc5 {[%clk 0:00:58]} 29. Qd1 {[%clk 0:01:08]}  bxa3 {[%clk 0:00:55]} 30. Rxa3 {[%clk 0:01:09]}  Qb4 {[%clk 0:00:54]} 31. Be1 {[%clk 0:01:04]}  Qc4 {[%clk 0:00:52]} 32. Rc2 {[%clk 0:01:02]}  Qb5 {[%clk 0:00:49]} 33. b4 {[%clk 0:01:00]}  Na4 {[%clk 0:00:30]} 34. Rc7 {[%clk 0:00:56]}  Nb6 {[%clk 0:00:29]} 35. Raa7 {[%clk 0:00:55]}  Bh6 {[%clk 0:00:20]} 36. g5 {[%clk 0:00:55]}  fxg5 {[%clk 0:00:20]} 37. hxg5 {[%clk 0:00:55]}  Rxf5 {[%clk 0:00:15]} 38. gxh6 {[%clk 0:00:55]}  Rf1+ {[%clk 0:00:16]} 39. Bxf1 {[%clk 0:00:55]}  Qxf1+ {[%clk 0:00:15]} 40. Kh2 {[%clk 0:00:56]}  Qf4+ {[%clk 0:00:15]} 41. Bg3 {[%clk 0:00:55]}  Qxh6+ {[%clk 0:00:07]} 42. Kg2 {[%clk 0:00:53]} 1-0


[Site "https://www.chess.com"]

[Event "Titled Tuesday Blitz July 4 Early 2023"]
[White "IrI_Cheetah"]
[Black "Papasimakopoulos, Alexandros"]
[BlackFideId "4244125"]
[WhiteElo "2489"]
[BlackElo "2695"]
[Result "0-1"]
[Round "3"]
[TimeControl "180+2"]
[Date "2023.07.04"]
[WhiteClock "0:00:00"]
[BlackClock "0:00:45"]
[Board "90"]

1. e4 {[%clk 0:02:56]}  e6 {[%clk 0:02:59]} 2. d4 {[%clk 0:02:57]}  d5 {[%clk 0:03:00]} 3. Nc3 {[%clk 0:02:58]}  Bb4 {[%clk 0:03:00]} 4. e5 {[%clk 0:02:58]}  c5 {[%clk 0:02:55]} 5. a3 {[%clk 0:02:58]}  Bxc3+ {[%clk 0:02:52]} 6. bxc3 {[%clk 0:02:59]}  Nc6 {[%clk 0:02:52]} 7. h4 {[%clk 0:02:56]}  Nge7 {[%clk 0:02:40]} 8. h5 {[%clk 0:02:54]}  h6 {[%clk 0:02:39]} 9. Qg4 {[%clk 0:02:51]}  Kf8 {[%clk 0:02:26]} 10. Bd3 {[%clk 0:02:43]}  Qa5 {[%clk 0:02:25]} 11. Bd2 {[%clk 0:02:44]}  Qa4 {[%clk 0:02:22]} 12. Qf4 {[%clk 0:02:26]}  c4 {[%clk 0:02:19]} 13. Bg6 {[%clk 0:01:47]}  Nd8 {[%clk 0:02:19]} 14. Rh3 {[%clk 0:01:22]}  Ke8 {[%clk 0:02:18]} 15. Kd1 {[%clk 0:00:56]}  fxg6 {[%clk 0:02:15]} 16. hxg6 {[%clk 0:00:57]}  Rf8 {[%clk 0:02:08]} 17. Qg3 {[%clk 0:00:54]}  Kd7 {[%clk 0:01:56]} 18. Ne2 {[%clk 0:00:48]}  Kc7 {[%clk 0:01:55]} 19. Nf4 {[%clk 0:00:37]}  Bd7 {[%clk 0:01:54]} 20. Nh5 {[%clk 0:00:37]}  Rg8 {[%clk 0:01:45]} 21. Nf6 {[%clk 0:00:32]}  Rf8 {[%clk 0:01:37]} 22. Bxh6 {[%clk 0:00:27]}  Nf5 {[%clk 0:01:37]} 23. Qf4 {[%clk 0:00:22]}  gxh6 {[%clk 0:01:32]} 24. Nxd5+ {[%clk 0:00:19]}  exd5 {[%clk 0:01:29]} 25. e6+ {[%clk 0:00:19]}  Kb6 {[%clk 0:01:26]} 26. Rb1+ {[%clk 0:00:09]}  Ka6 {[%clk 0:01:24]} 27. e7 {[%clk 0:00:08]}  Nxe7 {[%clk 0:01:10]} 28. Qxf8 {[%clk 0:00:08]}  Nxg6 {[%clk 0:01:06]} 29. Rxh6 {[%clk 0:00:09]}  Be8 {[%clk 0:00:57]} 30. Qg7 {[%clk 0:00:03]}  Qc6 {[%clk 0:00:50]} 31. Rb4 {[%clk 0:00:02]}  Ne6 {[%clk 0:00:48]} 32. Qf6 {[%clk 0:00:00]}  Nef4 {[%clk 0:00:45]} 0-1


[Site "https://www.chess.com"]

[Event "Titled Tuesday Blitz July 4 Early 2023"]
[White "Andrej2004"]
[Black "Miszler, Levente"]
[BlackFideId "763276"]
[WhiteElo "2671"]
[BlackElo "2482"]
[Result "1-0"]
[Round "3"]
[TimeControl "180+2"]
[Date "2023.07.04"]
[WhiteClock "0:02:32"]
[BlackClock "0:01:58"]
[Board "94"]

1. g3 {[%clk 0:03:00]}  Nf6 {[%clk 0:02:59]} 2. Bg2 {[%clk 0:03:01]}  g6 {[%clk 0:02:59]} 3. b3 {[%clk 0:03:02]}  Bg7 {[%clk 0:03:00]} 4. Bb2 {[%clk 0:03:02]}  O-O {[%clk 0:03:01]} 5. Nf3 {[%clk 0:03:01]}  d5 {[%clk 0:03:01]} 6. O-O {[%clk 0:03:01]}  c5 {[%clk 0:03:00]} 7. d3 {[%clk 0:03:01]}  Nc6 {[%clk 0:03:00]} 8. Nbd2 {[%clk 0:03:02]}  b6 {[%clk 0:02:59]} 9. e4 {[%clk 0:03:02]}  Bb7 {[%clk 0:02:59]} 10. exd5 {[%clk 0:03:01]}  Nxd5 {[%clk 0:02:58]} 11. Bxg7 {[%clk 0:03:00]}  Kxg7 {[%clk 0:02:58]} 12. Re1 {[%clk 0:03:00]}  e6 {[%clk 0:02:57]} 13. Ne5 {[%clk 0:02:57]}  Nxe5 {[%clk 0:02:56]} 14. Rxe5 {[%clk 0:02:58]}  Qc7 {[%clk 0:02:57]} 15. Qe1 {[%clk 0:02:58]}  Rad8 {[%clk 0:02:52]} 16. Nc4 {[%clk 0:02:53]}  Nb4 {[%clk 0:02:47]} 17. Qc3 {[%clk 0:02:51]}  Kg8 {[%clk 0:02:42]} 18. Bxb7 {[%clk 0:02:45]}  Qxb7 {[%clk 0:02:42]} 19. Re4 {[%clk 0:02:45]}  b5 {[%clk 0:02:33]} 20. Ne5 {[%clk 0:02:42]}  Rc8 {[%clk 0:02:22]} 21. Ng4 {[%clk 0:02:40]}  h5 {[%clk 0:02:04]} 22. Nf6+ {[%clk 0:02:36]}  Kh8 {[%clk 0:02:05]} 23. Nxh5+ {[%clk 0:02:31]}  f6 {[%clk 0:01:58]} 24. Nxf6 {[%clk 0:02:32]} 1-0


[Site "https://www.chess.com"]

[Event "Titled Tuesday Blitz July 4 Early 2023"]
[White "LangesNasenhaar"]
[Black "Hilary46"]
[WhiteElo "2476"]
[BlackElo "2653"]
[Result "0-1"]
[Round "3"]
[TimeControl "180+2"]
[Date "2023.07.04"]
[WhiteClock "0:00:08"]
[BlackClock "0:01:00"]
[Board "97"]

1. d4 {[%clk 0:03:00]}  d5 {[%clk 0:02:59]} 2. Nc3 {[%clk 0:03:01]}  Nf6 {[%clk 0:02:58]} 3. Bf4 {[%clk 0:03:01]}  c5 {[%clk 0:02:58]} 4. e4 {[%clk 0:03:01]}  Nxe4 {[%clk 0:02:45]} 5. Nxe4 {[%clk 0:03:00]}  dxe4 {[%clk 0:02:45]} 6. dxc5 {[%clk 0:03:00]}  Qa5+ {[%clk 0:02:44]} 7. c3 {[%clk 0:03:01]}  Qxc5 {[%clk 0:02:44]} 8. Qa4+ {[%clk 0:03:01]}  Nc6 {[%clk 0:02:43]} 9. Qxe4 {[%clk 0:03:01]}  Bf5 {[%clk 0:02:43]} 10. Qe3 {[%clk 0:02:50]}  e5 {[%clk 0:02:40]} 11. Nf3 {[%clk 0:02:43]}  Qxe3+ {[%clk 0:02:34]} 12. Bxe3 {[%clk 0:02:42]}  f6 {[%clk 0:02:32]} 13. Bb5 {[%clk 0:02:40]}  Be4 {[%clk 0:02:30]} 14. O-O {[%clk 0:02:37]}  a6 {[%clk 0:02:29]} 15. Ba4 {[%clk 0:02:36]}  O-O-O {[%clk 0:02:21]} 16. Bb6 {[%clk 0:02:13]}  Rd7 {[%clk 0:02:18]} 17. Rfd1 {[%clk 0:02:06]}  Be7 {[%clk 0:02:08]} 18. Rxd7 {[%clk 0:02:01]}  Kxd7 {[%clk 0:02:09]} 19. Rd1+ {[%clk 0:02:00]}  Kc8 {[%clk 0:02:07]} 20. Nd2 {[%clk 0:01:57]}  Bd5 {[%clk 0:02:06]} 21. Nb3 {[%clk 0:01:42]}  Be6 {[%clk 0:02:00]} 22. Bxc6 {[%clk 0:01:37]}  bxc6 {[%clk 0:02:01]} 23. Na5 {[%clk 0:01:11]}  Bd8 {[%clk 0:01:55]} 24. Rxd8+ {[%clk 0:01:06]}  Rxd8 {[%clk 0:01:56]} 25. Bxd8 {[%clk 0:01:06]}  Kxd8 {[%clk 0:01:57]} 26. Nxc6+ {[%clk 0:01:02]}  Kc7 {[%clk 0:01:57]} 27. Nb4 {[%clk 0:00:49]}  a5 {[%clk 0:01:58]} 28. Nd3 {[%clk 0:00:43]}  Bxa2 {[%clk 0:01:57]} 29. f3 {[%clk 0:00:44]}  Kc6 {[%clk 0:01:56]} 30. Kf2 {[%clk 0:00:43]}  Kb5 {[%clk 0:01:54]} 31. Ke3 {[%clk 0:00:38]}  Bb1 {[%clk 0:01:52]} 32. Nf2 {[%clk 0:00:35]}  Kc4 {[%clk 0:01:51]} 33. Kd2 {[%clk 0:00:33]}  Kb3 {[%clk 0:01:48]} 34. Kc1 {[%clk 0:00:33]}  Bf5 {[%clk 0:01:49]} 35. g3 {[%clk 0:00:29]}  a4 {[%clk 0:01:41]} 36. Nd1 {[%clk 0:00:25]}  Bd7 {[%clk 0:01:38]} 37. f4 {[%clk 0:00:24]}  exf4 {[%clk 0:01:33]} 38. gxf4 {[%clk 0:00:25]}  g5 {[%clk 0:01:22]} 39. fxg5 {[%clk 0:00:23]}  fxg5 {[%clk 0:01:23]} 40. Ne3 {[%clk 0:00:24]}  h5 {[%clk 0:01:22]} 41. Nc2 {[%clk 0:00:22]}  h4 {[%clk 0:01:14]} 42. Nd4+ {[%clk 0:00:22]}  Kc4 {[%clk 0:01:15]} 43. Kd2 {[%clk 0:00:22]}  g4 {[%clk 0:01:16]} 44. Ke3 {[%clk 0:00:20]}  Bc8 {[%clk 0:01:09]} 45. Kf4 {[%clk 0:00:19]}  g3 {[%clk 0:01:08]} 46. hxg3 {[%clk 0:00:17]}  h3 {[%clk 0:01:08]} 47. Nf3 {[%clk 0:00:17]}  Kb3 {[%clk 0:01:02]} 48. g4 {[%clk 0:00:17]}  Kxb2 {[%clk 0:01:02]} 49. Nd4 {[%clk 0:00:08]}  h2 {[%clk 0:01:00]} 0-1


[Site "https://www.chess.com"]

[Event "Titled Tuesday Blitz July 4 Early 2023"]
[White "Toncheva, Nadya"]
[Black "Koziorowicz, Michal"]
[WhiteFideId "2924056"]
[BlackFideId "21809194"]
[WhiteElo "2475"]
[BlackElo "2646"]
[Result "0-1"]
[Round "3"]
[TimeControl "180+2"]
[Date "2023.07.04"]
[WhiteClock "0:00:01"]
[BlackClock "0:01:11"]
[Board "98"]

1. d4 {[%clk 0:03:00]}  e6 {[%clk 0:02:57]} 2. c4 {[%clk 0:03:00]}  f5 {[%clk 0:02:58]} 3. Nc3 {[%clk 0:03:00]}  Nf6 {[%clk 0:02:58]} 4. g3 {[%clk 0:02:59]}  d5 {[%clk 0:02:58]} 5. Bg2 {[%clk 0:02:58]}  c6 {[%clk 0:02:57]} 6. b3 {[%clk 0:02:51]}  Ne4 {[%clk 0:02:48]} 7. Nxe4 {[%clk 0:02:46]}  fxe4 {[%clk 0:02:49]} 8. Nh3 {[%clk 0:02:43]}  Qf6 {[%clk 0:02:43]} 9. O-O {[%clk 0:02:39]}  Bd6 {[%clk 0:02:43]} 10. f3 {[%clk 0:02:30]}  exf3 {[%clk 0:02:41]} 11. Rxf3 {[%clk 0:02:27]}  Qg6 {[%clk 0:02:39]} 12. Nf4 {[%clk 0:02:23]}  Bxf4 {[%clk 0:02:39]} 13. Bxf4 {[%clk 0:02:23]}  O-O {[%clk 0:02:36]} 14. Qd2 {[%clk 0:02:16]}  Nd7 {[%clk 0:02:36]} 15. Raf1 {[%clk 0:02:16]}  Nf6 {[%clk 0:02:36]} 16. Be5 {[%clk 0:02:10]}  Bd7 {[%clk 0:02:36]} 17. Qb4 {[%clk 0:01:57]}  b6 {[%clk 0:02:30]} 18. Bxf6 {[%clk 0:01:43]}  gxf6 {[%clk 0:02:28]} 19. Qe7 {[%clk 0:01:42]}  Rf7 {[%clk 0:02:26]} 20. Qd6 {[%clk 0:01:32]}  Raf8 {[%clk 0:02:20]} 21. Bh3 {[%clk 0:01:29]}  Qe4 {[%clk 0:02:19]} 22. R1f2 {[%clk 0:01:18]}  f5 {[%clk 0:02:15]} 23. g4 {[%clk 0:00:56]}  Qxd4 {[%clk 0:02:06]} 24. gxf5 {[%clk 0:00:48]}  exf5 {[%clk 0:02:02]} 25. Kh1 {[%clk 0:00:30]}  Qf6 {[%clk 0:01:45]} 26. Qf4 {[%clk 0:00:29]}  Rg7 {[%clk 0:01:43]} 27. Rf1 {[%clk 0:00:28]}  d4 {[%clk 0:01:41]} 28. Rd3 {[%clk 0:00:27]}  c5 {[%clk 0:01:41]} 29. Bg2 {[%clk 0:00:26]}  Bc6 {[%clk 0:01:40]} 30. Bf3 {[%clk 0:00:21]}  Rg4 {[%clk 0:01:37]} 31. Rg1 {[%clk 0:00:19]}  Kh8 {[%clk 0:01:32]} 32. Rxg4 {[%clk 0:00:17]}  fxg4 {[%clk 0:01:33]} 33. Qxf6+ {[%clk 0:00:16]}  Rxf6 {[%clk 0:01:33]} 34. Bxc6 {[%clk 0:00:16]}  Rxc6 {[%clk 0:01:33]} 35. Kg2 {[%clk 0:00:16]}  Re6 {[%clk 0:01:32]} 36. Rd2 {[%clk 0:00:16]}  Kg7 {[%clk 0:01:31]} 37. Kg3 {[%clk 0:00:16]}  Re4 {[%clk 0:01:32]} 38. h3 {[%clk 0:00:14]}  gxh3 {[%clk 0:01:32]} 39. Kxh3 {[%clk 0:00:15]}  Kf6 {[%clk 0:01:32]} 40. Kg3 {[%clk 0:00:12]}  Ke5 {[%clk 0:01:32]} 41. Kf3 {[%clk 0:00:13]}  Re3+ {[%clk 0:01:32]} 42. Kf2 {[%clk 0:00:13]}  Ke4 {[%clk 0:01:32]} 43. Rd1 {[%clk 0:00:13]}  Rc3 {[%clk 0:01:30]} 44. Rh1 {[%clk 0:00:13]}  Rc2 {[%clk 0:01:30]} 45. Rh4+ {[%clk 0:00:13]}  Kf5 {[%clk 0:01:30]} 46. Rxh7 {[%clk 0:00:08]}  Rxa2 {[%clk 0:01:30]} 47. Rh3 {[%clk 0:00:06]}  Rb2 {[%clk 0:01:29]} 48. Rf3+ {[%clk 0:00:06]}  Ke4 {[%clk 0:01:29]} 49. Rd3 {[%clk 0:00:06]}  a6 {[%clk 0:01:29]} 50. Ke1 {[%clk 0:00:07]}  b5 {[%clk 0:01:29]} 51. Kd1 {[%clk 0:00:05]}  Ra2 {[%clk 0:01:24]} 52. Ke1 {[%clk 0:00:05]}  Ra1+ {[%clk 0:01:22]} 53. Kd2 {[%clk 0:00:05]}  Rh1 {[%clk 0:01:22]} 54. Rg3 {[%clk 0:00:03]}  Ra1 {[%clk 0:01:18]} 55. Rg4+ {[%clk 0:00:03]}  Kf5 {[%clk 0:01:17]} 56. Rg3 {[%clk 0:00:03]}  Ra2+ {[%clk 0:01:18]} 57. Kd1 {[%clk 0:00:03]}  Rb2 {[%clk 0:01:18]} 58. Rf3+ {[%clk 0:00:03]}  Ke5 {[%clk 0:01:18]} 59. Rh3 {[%clk 0:00:03]}  Ke4 {[%clk 0:01:16]} 60. Rh4+ {[%clk 0:00:03]}  Ke3 {[%clk 0:01:16]} 61. Rh3+ {[%clk 0:00:04]}  Kf4 {[%clk 0:01:16]} 62. Rf3+ {[%clk 0:00:05]}  Ke5 {[%clk 0:01:16]} 63. Rh3 {[%clk 0:00:05]}  bxc4 {[%clk 0:01:16]} 64. bxc4 {[%clk 0:00:05]}  Rb4 {[%clk 0:01:17]} 65. Ra3 {[%clk 0:00:06]}  Rxc4 {[%clk 0:01:17]} 66. Rxa6 {[%clk 0:00:06]}  Rb4 {[%clk 0:01:18]} 67. Ra5 {[%clk 0:00:06]}  Kd5 {[%clk 0:01:18]} 68. Kd2 {[%clk 0:00:07]}  Kc4 {[%clk 0:01:18]} 69. Ra2 {[%clk 0:00:05]}  Kb3 {[%clk 0:01:17]} 70. Ra8 {[%clk 0:00:05]}  Ra4 {[%clk 0:01:14]} 71. Rb8+ {[%clk 0:00:05]}  Kc4 {[%clk 0:01:14]} 72. Rb2 {[%clk 0:00:03]}  Ra3 {[%clk 0:01:15]} 73. Rc2+ {[%clk 0:00:03]}  Kd5 {[%clk 0:01:14]} 74. Rb2 {[%clk 0:00:03]}  c4 {[%clk 0:01:12]} 75. Rb5+ {[%clk 0:00:03]}  Ke4 {[%clk 0:01:12]} 76. Rh5 {[%clk 0:00:03]}  Ra2+ {[%clk 0:01:12]} 77. Kd1 {[%clk 0:00:02]}  c3 {[%clk 0:01:13]} 78. Rh4+ {[%clk 0:00:02]}  Kd5 {[%clk 0:01:13]} 79. e4+ {[%clk 0:00:02]}  Kc4 {[%clk 0:01:13]} 80. Rh7 {[%clk 0:00:01]}  d3 {[%clk 0:01:12]} 81. Rc7+ {[%clk 0:00:02]}  Kd4 {[%clk 0:01:12]} 82. Ke1 {[%clk 0:00:01]}  Ra1+ {[%clk 0:01:11]} 83. Kf2 {[%clk 0:00:01]}  d2 {[%clk 0:01:11]} 0-1


[Site "https://www.chess.com"]

[Event "Titled Tuesday Blitz July 4 Early 2023"]
[White "Soham Kamotra"]
[Black "Uzcategui Rodriguez, Alejandro"]
[WhiteFideId "46647490"]
[BlackFideId "3903400"]
[WhiteElo "2644"]
[BlackElo "2473"]
[Result "1-0"]
[Round "3"]
[TimeControl "180+2"]
[Date "2023.07.04"]
[WhiteClock "0:00:08"]
[BlackClock "0:00:00"]
[Board "99"]

1. d4 {[%clk 0:03:00]}  Nf6 {[%clk 0:02:59]} 2. Nc3 {[%clk 0:03:01]}  d6 {[%clk 0:03:00]} 3. e4 {[%clk 0:03:00]}  Nbd7 {[%clk 0:03:01]} 4. Be3 {[%clk 0:02:57]}  e5 {[%clk 0:02:59]} 5. Nf3 {[%clk 0:02:54]}  Be7 {[%clk 0:02:57]} 6. Bc4 {[%clk 0:02:45]}  c6 {[%clk 0:02:55]} 7. a4 {[%clk 0:02:18]}  O-O {[%clk 0:02:52]} 8. O-O {[%clk 0:02:08]}  b6 {[%clk 0:02:52]} 9. h3 {[%clk 0:02:05]}  a6 {[%clk 0:02:49]} 10. d5 {[%clk 0:01:49]}  cxd5 {[%clk 0:02:19]} 11. Bxd5 {[%clk 0:01:43]}  Rb8 {[%clk 0:02:14]} 12. Qe2 {[%clk 0:01:37]}  Nc5 {[%clk 0:02:09]} 13. Nd2 {[%clk 0:01:37]}  Nxd5 {[%clk 0:01:41]} 14. Nxd5 {[%clk 0:01:34]}  f5 {[%clk 0:01:40]} 15. Bxc5 {[%clk 0:01:28]}  bxc5 {[%clk 0:01:37]} 16. Nc4 {[%clk 0:01:28]}  f4 {[%clk 0:01:25]} 17. f3 {[%clk 0:01:27]}  Bh4 {[%clk 0:01:17]} 18. Rfd1 {[%clk 0:01:23]}  Qg5 {[%clk 0:01:08]} 19. Kf1 {[%clk 0:01:15]}  Qg3 {[%clk 0:01:02]} 20. Qe1 {[%clk 0:00:47]}  Qxe1+ {[%clk 0:00:40]} 21. Rxe1 {[%clk 0:00:48]}  Bxe1 {[%clk 0:00:41]} 22. Rxe1 {[%clk 0:00:49]}  Be6 {[%clk 0:00:31]} 23. Rd1 {[%clk 0:00:45]}  Rfd8 {[%clk 0:00:23]} 24. b3 {[%clk 0:00:36]}  Kf7 {[%clk 0:00:23]} 25. Na5 {[%clk 0:00:25]}  Bxd5 {[%clk 0:00:21]} 26. Rxd5 {[%clk 0:00:22]}  Rbc8 {[%clk 0:00:17]} 27. Ke2 {[%clk 0:00:19]}  Ke6 {[%clk 0:00:17]} 28. Kd3 {[%clk 0:00:18]}  Rd7 {[%clk 0:00:14]} 29. Nc4 {[%clk 0:00:17]}  Rb8 {[%clk 0:00:14]} 30. Kc3 {[%clk 0:00:16]}  Rb4 {[%clk 0:00:14]} 31. Kb2 {[%clk 0:00:14]}  Rxc4 {[%clk 0:00:14]} 32. bxc4 {[%clk 0:00:14]}  Rb7+ {[%clk 0:00:15]} 33. Kc3 {[%clk 0:00:07]}  Rb4 {[%clk 0:00:16]} 34. Rd1 {[%clk 0:00:07]}  Rxa4 {[%clk 0:00:16]} 35. Rb1 {[%clk 0:00:08]}  Rb4 {[%clk 0:00:08]} 36. Rxb4 {[%clk 0:00:08]}  cxb4+ {[%clk 0:00:09]} 37. Kxb4 {[%clk 0:00:08]}  Kd7 {[%clk 0:00:10]} 38. Ka5 {[%clk 0:00:09]}  Kc6 {[%clk 0:00:10]} 39. Kxa6 {[%clk 0:00:03]}  Kc5 {[%clk 0:00:09]} 40. Kb7 {[%clk 0:00:03]}  Kxc4 {[%clk 0:00:09]} 41. Kc6 {[%clk 0:00:04]}  d5 {[%clk 0:00:03]} 42. exd5 {[%clk 0:00:05]}  e4 {[%clk 0:00:03]} 43. fxe4 {[%clk 0:00:05]}  g5 {[%clk 0:00:03]} 44. d6 {[%clk 0:00:05]}  h5 {[%clk 0:00:03]} 45. d7 {[%clk 0:00:06]}  g4 {[%clk 0:00:04]} 46. hxg4 {[%clk 0:00:06]}  hxg4 {[%clk 0:00:04]} 47. d8=Q {[%clk 0:00:07]}  f3 {[%clk 0:00:00]} 48. Qd3+ {[%clk 0:00:08]} 1-0


[Site "https://www.chess.com"]

[Event "Titled Tuesday Blitz July 4 Early 2023"]
[White "Eynullayev, Atilla"]
[Black "Taspinar, Yanki"]
[WhiteFideId "13413570"]
[BlackFideId "34561188"]
[WhiteElo "2471"]
[BlackElo "2640"]
[Result "0-1"]
[Round "3"]
[TimeControl "180+2"]
[Date "2023.07.04"]
[WhiteClock "0:00:02"]
[BlackClock "0:00:04"]
[Board "101"]

1. e4 {[%clk 0:02:57]}  e6 {[%clk 0:02:59]} 2. d4 {[%clk 0:02:57]}  d5 {[%clk 0:02:59]} 3. e5 {[%clk 0:02:57]}  c5 {[%clk 0:02:59]} 4. c3 {[%clk 0:02:58]}  Nc6 {[%clk 0:02:58]} 5. Nf3 {[%clk 0:02:58]}  Bd7 {[%clk 0:02:58]} 6. a3 {[%clk 0:02:58]}  cxd4 {[%clk 0:02:59]} 7. cxd4 {[%clk 0:02:58]}  Rc8 {[%clk 0:02:59]} 8. b4 {[%clk 0:02:55]}  Nh6 {[%clk 0:02:58]} 9. Bd3 {[%clk 0:02:54]}  Nf5 {[%clk 0:02:57]} 10. Bxf5 {[%clk 0:02:55]}  exf5 {[%clk 0:02:58]} 11. O-O {[%clk 0:02:49]}  Be7 {[%clk 0:02:42]} 12. Qd3 {[%clk 0:02:42]}  Be6 {[%clk 0:02:36]} 13. Nc3 {[%clk 0:02:43]}  O-O {[%clk 0:02:34]} 14. Na4 {[%clk 0:02:43]}  b6 {[%clk 0:02:27]} 15. Bd2 {[%clk 0:02:26]}  Qd7 {[%clk 0:02:25]} 16. Nc3 {[%clk 0:02:23]}  Qb7 {[%clk 0:02:16]} 17. Bg5 {[%clk 0:02:22]}  h6 {[%clk 0:02:14]} 18. Bxe7 {[%clk 0:02:21]}  Nxe7 {[%clk 0:02:11]} 19. Ne2 {[%clk 0:01:57]}  Rc7 {[%clk 0:02:00]} 20. b5 {[%clk 0:01:31]}  Rfc8 {[%clk 0:01:54]} 21. Ra2 {[%clk 0:01:24]}  Rc4 {[%clk 0:01:48]} 22. Nd2 {[%clk 0:01:17]}  R4c7 {[%clk 0:01:43]} 23. a4 {[%clk 0:01:17]}  Rb8 {[%clk 0:01:17]} 24. h4 {[%clk 0:01:13]}  Ra8 {[%clk 0:01:16]} 25. Rb1 {[%clk 0:01:11]}  Qc8 {[%clk 0:01:07]} 26. Rb3 {[%clk 0:00:56]}  Qd8 {[%clk 0:00:34]} 27. g3 {[%clk 0:00:54]}  Rac8 {[%clk 0:00:32]} 28. Nf4 {[%clk 0:00:54]}  Rc1+ {[%clk 0:00:28]} 29. Kg2 {[%clk 0:00:54]}  Rd1 {[%clk 0:00:27]} 30. Rb1 {[%clk 0:00:52]}  Rxb1 {[%clk 0:00:24]} 31. Nxb1 {[%clk 0:00:48]}  Rc1 {[%clk 0:00:21]} 32. Ne2 {[%clk 0:00:44]}  Rc7 {[%clk 0:00:18]} 33. Rc2 {[%clk 0:00:44]}  Qc8 {[%clk 0:00:18]} 34. Rc3 {[%clk 0:00:44]}  Rc4 {[%clk 0:00:14]} 35. Nd2 {[%clk 0:00:42]}  Qb7 {[%clk 0:00:10]} 36. f3 {[%clk 0:00:38]}  Rxa4 {[%clk 0:00:09]} 37. Qc2 {[%clk 0:00:37]}  Rc4 {[%clk 0:00:05]} 38. Nxc4 {[%clk 0:00:36]}  dxc4 {[%clk 0:00:05]} 39. Nf4 {[%clk 0:00:36]}  Nd5 {[%clk 0:00:04]} 40. Nxd5 {[%clk 0:00:14]}  Qxd5 {[%clk 0:00:05]} 41. Qd2 {[%clk 0:00:08]}  Qxb5 {[%clk 0:00:05]} 42. h5 {[%clk 0:00:09]}  Qd5 {[%clk 0:00:05]} 43. Qa2 {[%clk 0:00:08]}  Qxd4 {[%clk 0:00:04]} 44. Rc2 {[%clk 0:00:09]}  Qd3 {[%clk 0:00:03]} 45. Rd2 {[%clk 0:00:08]}  Qe3 {[%clk 0:00:03]} 46. Rd8+ {[%clk 0:00:08]}  Kh7 {[%clk 0:00:04]} 47. Qxa7 {[%clk 0:00:09]}  Qe2+ {[%clk 0:00:04]} 48. Kg1 {[%clk 0:00:08]}  Qe1+ {[%clk 0:00:04]} 49. Kg2 {[%clk 0:00:08]}  Qe2+ {[%clk 0:00:05]} 50. Kg1 {[%clk 0:00:09]}  Qxe5 {[%clk 0:00:05]} 51. Qa8 {[%clk 0:00:09]}  Qxg3+ {[%clk 0:00:05]} 52. Kf1 {[%clk 0:00:09]}  Qh3+ {[%clk 0:00:05]} 53. Kf2 {[%clk 0:00:10]}  Qxh5 {[%clk 0:00:05]} 54. Rh8+ {[%clk 0:00:10]}  Kg6 {[%clk 0:00:06]} 55. Qc6 {[%clk 0:00:10]}  Qh2+ {[%clk 0:00:06]} 56. Kf1 {[%clk 0:00:10]}  Qe5 {[%clk 0:00:06]} 57. Kf2 {[%clk 0:00:10]}  Qc5+ {[%clk 0:00:06]} 58. Qxc5 {[%clk 0:00:10]}  bxc5 {[%clk 0:00:06]} 59. Ra8 {[%clk 0:00:10]}  Kf6 {[%clk 0:00:07]} 60. Ra5 {[%clk 0:00:10]}  g6 {[%clk 0:00:07]} 61. Rxc5 {[%clk 0:00:11]}  h5 {[%clk 0:00:08]} 62. Kg3 {[%clk 0:00:11]}  g5 {[%clk 0:00:09]} 63. f4 {[%clk 0:00:11]}  h4+ {[%clk 0:00:07]} 64. Kh3 {[%clk 0:00:10]}  Kg6 {[%clk 0:00:07]} 65. Rc6 {[%clk 0:00:08]}  Kh5 {[%clk 0:00:04]} 66. fxg5 {[%clk 0:00:08]}  Kxg5 {[%clk 0:00:05]} 67. Rc5 {[%clk 0:00:08]}  Kh5 {[%clk 0:00:03]} 68. Re5 {[%clk 0:00:06]}  Kg5 {[%clk 0:00:03]} 69. Rc5 {[%clk 0:00:07]}  Kf4 {[%clk 0:00:03]} 70. Kxh4 {[%clk 0:00:07]}  Ke3 {[%clk 0:00:04]} 71. Re5+ {[%clk 0:00:02]}  Kd4 {[%clk 0:00:03]} 72. Re1 {[%clk 0:00:03]}  c3 {[%clk 0:00:04]} 73. Kg3 {[%clk 0:00:02]}  Kd3 {[%clk 0:00:04]} 0-1


[Site "https://www.chess.com"]